fUSD/lending_fUSD_20260309
["ID","MTS","AMOUNT","RATE_DAILY","PERIOD"]
[408011255,1773023053687,-1628.13557608,0.00014258,2]
[408011256,1773023237650,500.0,8e-05,2]
[408011257,1773023237720,814.70211509,8e-05,2]
[408011258,1773023242445,1000.0,8e-05,2]
[408011266,1773023431351,-265.0,0.00014,2]
[408011267,1773023431368,-174.67,0.00014,2]
[408011268,1773023431387,-250.0,0.00014043,2]
[408011269,1773023431403,-185.82,0.00014087,2]
[408011270,1773023431423,-357.33177768,0.00014087,2]
[408011271,1773023431439,-450.0,0.00014087,2]
[408011272,1773023431454,-125.96732821,0.00014174,2]
[408011273,1773023431473,-1319.98203148,0.00014174,2]
[408011274,1773023431498,-784.19064031,0.00014174,2]
[408011275,1773023431513,-14.93517781,0.00014215,2]
[408011277,1773023431531,-869.72928149,0.00014215,2]
[408011280,1773023431551,-315.3355407,0.00014215,2]
[408011282,1773023431566,-155.577806,0.00014256,2]
[408011286,1773023431592,-144.422194,0.00014256,2]
[408011288,1773023431606,-711.71442392,0.00014258,2]
[408011290,1773023431621,-174.67,0.00014339,2]
[408011292,1773023431636,-150.0,0.00014391,2]
[408011294,1773023431651,-450.0,0.00014391,14]
[408011296,1773023431665,-150.99,0.00014392,2]
[408011298,1773023431680,-9999.99,0.00014392,2]
[408011299,1773023431694,-9999.99,0.00014392,2]
[408011301,1773023431709,-150.99,0.00014392,2]
[408011303,1773023431724,-1187.57,0.00014392,2]
[408011304,1773023431738,-499.99,0.00014392,2]
[408011306,1773023431753,-9999.99,0.00014392,2]
[408011308,1773023431768,-174.67,0.00014678,2]
[408011309,1773023431782,-263.44399699,0.00014736,2]
[408011310,1773023431797,-296.0,0.00014775,2]
[408011311,1773023431812,-168.0,0.00014775,2]
[408011312,1773023431827,-623.94227919,0.00014807,2]
[408011313,1773023431841,-500.0,0.00014813,2]
[408011314,1773023431855,-500.0,0.00014813,2]
[408011315,1773023431869,-500.0,0.00014813,2]
[408011316,1773023431884,-500.0,0.00014813,2]
[408011317,1773023431898,-206.0,0.00014866,2]
[408011318,1773023431913,-500.0,0.00014925,2]
[408011319,1773023431928,-500.0,0.00014925,2]
[408011320,1773023431943,-500.0,0.00014975,2]
[408011321,1773023431958,-158.25,0.00015,2]
[408011322,1773023431973,-500.0,0.00015,2]
[408011323,1773023431989,-726.36,0.00015,2]
[408011324,1773023432004,-877.62891563,0.00015,30]
[408011325,1773023432019,-501.12391094,0.00015,30]
[408011326,1773023432035,-700.0,0.00015,30]
[408011327,1773023432050,-500.0,0.00015,30]
[408011328,1773023432066,-500.0,0.00015,30]
[408011329,1773023432082,-500.0,0.00015,30]
[408011330,1773023432097,-500.0,0.00015,30]
[408011331,1773023432114,-500.0,0.00015,30]
[408011332,1773023432129,-783.06526647,0.00015,30]
[408011333,1773023432148,-500.0,0.00015,30]
[408011334,1773023432163,-500.0,0.00015,30]
[408011335,1773023432178,-500.0,0.00015,30]
[408011336,1773023432193,-500.2636592,0.00015,30]
[408011337,1773023432208,-974.24223008,0.00015,30]
[408011338,1773023432223,-500.0,0.00015,30]
[408011339,1773023432237,-500.0,0.00015,30]
[408011340,1773023432253,-500.0,0.00015,30]
[408011341,1773023432266,-500.0,0.00015,30]
[408011342,1773023432281,-500.0,0.00015,30]
[408011343,1773023432296,-500.0,0.00015,30]
[408011344,1773023432311,-500.0,0.00015,30]
[408011345,1773023432327,-500.0,0.00015,30]
[408011346,1773023432342,-500.0,0.00015,30]
[408011347,1773023432357,-500.0,0.00015,30]
[408011348,1773023432373,-500.0,0.00015,30]
[408011349,1773023432390,-500.0,0.00015,30]
[408011350,1773023432405,-500.0,0.00015,30]
[408011351,1773023432420,-500.0,0.00015,30]
[408011352,1773023432436,-500.0,0.00015,30]
[408011353,1773023432451,-500.0,0.00015,30]
[408011354,1773023432465,-500.0,0.00015,30]
[408011355,1773023432481,-500.0,0.00015,30]
[408011356,1773023432495,-500.0,0.00015,30]
[408011357,1773023432514,-500.0,0.00015,30]
[408011358,1773023432530,-500.0,0.00015,30]
[408011359,1773023432544,-500.0,0.00015,30]
[408011360,1773023432560,-500.0,0.00015,30]
[408011361,1773023432575,-500.0,0.00015,30]
[408011362,1773023432590,-500.0,0.00015,30]
[408011363,1773023432608,-500.0,0.00015,30]
[408011364,1773023432624,-500.0,0.00015,30]
[408011365,1773023432640,-557.04339442,0.00015,30]
[408011366,1773023432655,-620.33713069,0.00015,30]
[408011367,1773023432669,-500.0,0.00015,30]
[408011368,1773023432684,-500.0,0.00015,30]
[408011369,1773023432703,-500.0,0.00015,30]
[408011370,1773023432718,-500.0,0.00015,30]
[408011371,1773023432732,-543.25685673,0.00015,30]
[408011372,1773023432747,-500.0,0.00015,30]
[408011373,1773023432762,-500.0,0.00015,30]
[408011374,1773023432777,-500.0,0.00015,30]
[408011375,1773023433150,-576.36919382,0.00015,30]
[408011376,1773023433239,-500.0,0.00015,30]
[408011377,1773023433253,-500.0,0.00015,30]
[408011378,1773023433264,-500.0,0.00015012,2]
[408011379,1773023433275,-500.0,0.00015012,2]
[408011380,1773023433284,-174.67,0.00015017,2]
[408011381,1773023433294,-500.23838819,0.000151,2]
[408011382,1773023433303,-502.1202599,0.000151,2]
[408011383,1773023433313,-726.36,0.00015274,2]
[408011384,1773023433322,-1826.58,0.0001531,2]
[408011385,1773023433332,-373.2114021,0.0001534,2]
[408011386,1773023433344,-163.22533402,0.0001534,2]
[408011387,1773023433353,-174.67,0.00015357,2]
[408011388,1773023433364,-204.28312793,0.00015367,2]
[408011389,1773023433375,-250.0,0.000154,2]
[408011390,1773023433385,-5000.0,0.000154,2]
[408011391,1773023433396,-500.0,0.000154,2]
[408011392,1773023433405,-250.0,0.000154,2]
[408011393,1773023433414,-297.57310934,0.000154,2]
[408011394,1773023433423,-6752.0367,0.00015423,2]
[408011395,1773023433433,-1000.0,0.00015473,2]
[408011396,1773023433443,-255.0,0.00015513,2]
[408011397,1773023433453,-503.31399399,0.00015523,2]
[408011398,1773023433462,-726.36,0.00015548,2]
[408011399,1773023433473,-1000.0,0.0001556,2]
[408011400,1773023433485,-1000.0,0.0001556,2]
[408011401,1773023433500,-300.0,0.00015591,2]
[408011402,1773023433509,-5000.0,0.00015591,2]
[408011403,1773023433520,-270.0,0.0001561,2]
[408011404,1773023433531,-420.0,0.00015614,2]
[408011405,1773023433543,-1680.0,0.00015637,2]
[408011406,1773023433555,-1017.0,0.00015685,2]
[408011407,1773023433565,-174.67,0.00015696,2]
[408011408,1773023433577,-726.36,0.00015822,2]
[408011409,1773023433586,-5021.18375973,0.0001596,2]
[408011410,1773023433596,-200.0,0.00016,3]
[408011411,1773023433606,-384.01457508,0.00016,2]
[408011412,1773023433617,-1500.0,0.00016021,2]
[408011413,1773023433628,-174.67,0.00016035,2]
[408011414,1773023433638,-255.46982239,0.0001607,2]
[408011415,1773023433649,-726.36,0.00016096,2]
[408011416,1773023433660,-1500.0,0.00016108,2]
[408011417,1773023433669,-9999.99,0.00016116,2]
[408011418,1773023433679,-1852.42,0.00016324,2]
[408011419,1773023433694,-2657.47,0.00016339,2]
[408011420,1773023433705,-500.0,0.00016355,2]
[408011421,1773023433714,-726.3942566,0.0001637,2]
[408011422,1773023433724,-174.67,0.00016374,2]
[408011423,1773023433734,-163.35,0.00016438,3]
[408011424,1773023433745,-2036.43,0.0001644,2]
[408011425,1773023433757,-1000.0,0.00016569,2]
[408011426,1773023433768,-150.0,0.00016613,2]
[408011427,1773023433779,-2000.0,0.00016656,2]
[408011428,1773023433791,-281.42,0.00016682,2]
[408011429,1773023433802,-174.67,0.00016713,2]
[408011430,1773023433812,-433.0,0.00016722,2]
[408011431,1773023433824,-1600.0,0.00016964,2]
[408011432,1773023433835,-2000.0,0.00016998,2]
[408011433,1773023433846,-502.0,0.00017,2]
[408011434,1773023433856,-2000.0,0.00017023,2]
[408011435,1773023433866,-174.67,0.00017052,2]
[408011436,1773023433883,-256.0,0.00017102,2]
[408011437,1773023433895,-3424.26,0.00017124,2]
[408011438,1773023433905,-2351.0,0.000172,2]
[408011439,1773023433915,-174.67,0.00017391,2]
[408011440,1773023433925,-281.42,0.00017516,2]
[408011441,1773023433935,-174.67,0.0001773,2]
[408011442,1773023433946,-425.31,0.00017995,2]
[408011443,1773023433955,-200.0,0.00018,4]
[408011444,1773023433966,-736.0,0.00018032,2]
[408011445,1773023433976,-174.67,0.0001807,2]
[408011446,1773023433986,-600.0,0.00018082,7]
[408011447,1773023433995,-1700.0,0.00018082,7]
[408011448,1773023434005,-1400.0,0.00018082,7]
[408011449,1773023434014,-502.0,0.00018313,3]
[408011450,1773023434024,-281.42,0.0001835,2]
[408011451,1773023434034,-2644.0,0.000184,2]
[408011452,1773023434044,-160.0,0.000184,2]
[408011453,1773023434054,-2806.0,0.000184,2]
[408011454,1773023434064,-174.67,0.00018409,2]
[408011455,1773023434077,-170.06448864,0.0001864,2]
[408011456,1773023434086,-2806.0,0.0001872,2]
[408011457,1773023434096,-174.67,0.00018748,2]
[408011458,1773023434106,-457.32081978,0.00018814,2]
[408011459,1773023434118,-172.87392778,0.00018902,2]
[408011460,1773023434129,-160.0,0.00018902,2]
[408011461,1773023434141,-3292.0,0.0001892,2]
[408011462,1773023434151,-985.17,0.00018969,2]
[408011463,1773023434161,-425.31,0.00018994,2]
[408011464,1773023434171,-300.0,0.00019,6]
[408011465,1773023434181,-152.0,0.00019055,3]
[408011466,1773023434191,-1600.0,0.00019085,2]
[408011467,1773023434201,-174.67,0.00019087,2]
[408011468,1773023434210,-700.0,0.000191,6]
[408011469,1773023434220,-2000.0,0.00019123,2]
[408011470,1773023434230,-350.0,0.00019132,2]
[408011471,1773023434239,-334.3,0.00019162,2]
[408011472,1773023434253,-600.0,0.00019178,7]
[408011473,1773023434262,-1700.0,0.00019178,7]
[408011474,1773023434273,-1400.0,0.00019178,7]
[408011475,1773023434282,-1000.0,0.00019178,2]
[408011476,1773023434291,-281.42,0.00019184,2]
[408011477,1773023434301,-1000.0,0.000192,2]
[408011478,1773023434311,-1000.0,0.000192,3]
[408011479,1773023434320,-1100.0,0.000192,7]
[408011480,1773023434330,-334.3,0.00019246,2]
[408011481,1773023434340,-1500.0,0.000193,7]
[408011482,1773023434351,-2520.26353701,0.00019303,2]
[408011483,1773023434360,-334.3,0.00019329,2]
[408011484,1773023434370,-847.0,0.0001936,2]
[408011485,1773023434380,-2520.263537,0.00019369,2]
[408011486,1773023434390,-1900.0,0.000194,7]
[408011487,1773023434399,-891.0,0.00019403,2]
[408011488,1773023434410,-2500.0,0.00019407,2]
[408011489,1773023434419,-334.3,0.00019413,2]
[408011490,1773023434429,-174.67,0.00019426,2]
[408011491,1773023434443,-1252.0,0.00019428,2]
[408011492,1773023434452,-605.0,0.00019432,2]
[408011493,1773023434462,-2520.263537,0.00019436,2]
[408011494,1773023434473,-1000.0,0.00019452,2]
[408011495,1773023434485,-153.33762345,0.00019483,2]
[408011496,1773023434495,-183.822,0.00019488,2]
[408011497,1773023434506,-4687.493,0.00019488,2]
[408011498,1773023434516,-334.3,0.00019497,2]
[408011499,1773023434526,-300.0,0.000195,7]
[408011500,1773023434535,-2520.263537,0.00019502,2]
[408011501,1773023434545,-150.0,0.00019507,2]
[408011502,1773023434554,-500.0,0.00019507,2]
[408011503,1773023434564,-152.96458514,0.00019507,2]
[408011504,1773023434574,-250.67426717,0.00019507,2]
[408011505,1773023434584,-150.0,0.00019507,2]
[408011506,1773023434593,-150.0,0.00019507,2]
[408011507,1773023434603,-150.0,0.00019507,2]
[408011508,1773023434612,-150.0,0.00019507,2]
[408011509,1773023434622,-150.0,0.00019507,2]
[408011510,1773023434634,-150.58067844,0.00019507,2]
[408011511,1773023434643,-150.0,0.00019507,2]
[408011512,1773023434652,-209.72265383,0.00019507,2]
[408011513,1773023434662,-150.0,0.00019507,2]
[408011514,1773023434671,-150.0,0.00019507,2]
[408011515,1773023434681,-200.0,0.00019507,2]
[408011516,1773023434690,-150.0,0.00019507,2]
[408011517,1773023434699,-500.0,0.00019507,2]
[408011518,1773023434709,-500.0,0.00019507,2]
[408011519,1773023434719,-500.0,0.00019507,2]
[408011520,1773023434728,-177.99151511,0.00019507,2]
[408011521,1773023434738,-150.0,0.00019507,2]
[408011522,1773023434747,-150.0,0.00019507,2]
[408011523,1773023434757,-500.0,0.00019507,2]
[408011524,1773023434766,-500.0,0.00019507,2]
[408011525,1773023434776,-500.0,0.00019507,2]
[408011526,1773023434786,-150.0,0.00019507,2]
[408011527,1773023434795,-150.0,0.00019507,2]
[408011528,1773023434805,-150.0,0.00019507,2]
[408011529,1773023434814,-500.0,0.00019507,2]
[408011530,1773023434824,-500.0,0.00019507,2]
[408011531,1773023434834,-150.0,0.00019507,2]
[408011532,1773023434843,-500.0,0.00019507,2]
[408011533,1773023434853,-891.0,0.00019547,2]
[408011534,1773023434862,-150.0,0.00019562,2]
[408011535,1773023434872,-500.0,0.00019562,2]
[408011536,1773023434882,-194.64589217,0.00019562,2]
[408011537,1773023434892,-150.0,0.00019562,2]
[408011538,1773023434903,-204.25959733,0.00019562,2]
[408011539,1773023434914,-150.0,0.00019562,2]
[408011540,1773023434924,-150.0,0.00019562,2]
[408011541,1773023434936,-150.0,0.00019562,2]
[408011542,1773023434947,-292.86837004,0.00019562,2]
[408011543,1773023434957,-150.0,0.00019562,2]
[408011544,1773023434968,-500.0,0.00019562,2]
[408011545,1773023434978,-150.0,0.00019562,2]
[408011546,1773023434990,-500.0,0.00019562,2]
[408011547,1773023435000,-500.0,0.00019562,2]
[408011548,1773023435011,-150.0,0.00019562,2]
[408011549,1773023435032,-150.0,0.00019562,2]
[408011550,1773023435043,-500.0,0.00019562,2]
[408011551,1773023435053,-438.01614418,0.00019562,2]
[408011552,1773023435066,-500.0,0.00019562,2]
[408011553,1773023435077,-500.0,0.00019562,2]
[408011554,1773023435087,-500.0,0.00019562,2]
[408011555,1773023435099,-150.0,0.00019562,2]
[408011556,1773023435121,-500.0,0.00019562,2]
[408011557,1773023435132,-2520.263537,0.00019568,2]
[408011558,1773023435143,-334.3,0.00019581,2]
[408011559,1773023435153,-250.45472089,0.000196,2]
[408011560,1773023435164,-425.32611708,0.000196,2]
[408011561,1773023435174,-300.0,0.000196,7]
[408011562,1773023435184,-200.0,0.00019617,2]
[408011563,1773023435194,-190.06683403,0.00019617,2]
[408011564,1773023435204,-256.44664571,0.00019617,2]
[408011565,1773023435215,-211.4784502,0.00019617,2]
[408011566,1773023435225,-211.85670277,0.00019617,2]
[408011567,1773023435235,-209.59431566,0.00019617,2]
[408011568,1773023435245,-150.0,0.00019617,2]
[408011569,1773023435255,-500.0,0.00019617,2]
[408011570,1773023435265,-150.0,0.00019617,2]
[408011571,1773023435275,-502.75697176,0.00019617,2]
[408011572,1773023435285,-500.0,0.00019617,2]
[408011573,1773023435295,-150.0,0.00019617,2]
[408011574,1773023435306,-252.77032458,0.00019617,2]
[408011575,1773023435316,-353.24682162,0.00019617,2]
[408011576,1773023435326,-354.03796753,0.00019617,2]
[408011577,1773023435336,-500.0,0.00019617,2]
[408011578,1773023435346,-500.0,0.00019617,2]
[408011579,1773023435357,-150.0,0.00019617,2]
[408011580,1773023435368,-500.0,0.00019617,2]
[408011581,1773023435379,-502.0,0.00019625,4]
[408011582,1773023435390,-2520.263537,0.00019635,2]
[408011583,1773023435401,-334.3,0.00019665,2]
[408011584,1773023435412,-168.09099825,0.00019671,2]
[408011585,1773023435422,-280.93851437,0.00019671,2]
[408011586,1773023435433,-150.0,0.00019671,2]
[408011587,1773023435443,-500.0,0.00019671,2]
[408011588,1773023435454,-202.34824749,0.00019671,2]
[408011589,1773023435465,-436.34426162,0.00019671,2]
[408011590,1773023435475,-500.0,0.00019671,2]
[408011591,1773023435485,-150.0,0.00019671,2]
[408011592,1773023435495,-537.03813108,0.00019671,2]
[408011593,1773023435506,-4890.93511657,0.00019673,2]
[408011594,1773023435516,-891.0,0.00019673,2]
[408011595,1773023435527,-350.0,0.00019679,2]
[408011596,1773023435537,-781.45,0.00019689,2]
[408011597,1773023435547,-1832.98826504,0.000197,2]
[408011598,1773023435558,-5000.0,0.000197,2]
[408011599,1773023435568,-300.0,0.000197,7]
[408011600,1773023435578,-2520.263537,0.00019701,2]
[408011601,1773023435588,-4890.93511657,0.00019705,2]
[408011602,1773023435599,-157.6611554,0.0001971,2]
[408011603,1773023435610,-605.0,0.00019714,2]
[408011604,1773023435620,-1334.14,0.00019716,2]
[408011605,1773023435631,-1000.0,0.00019726,2]
[408011606,1773023435642,-3378.16,0.00019726,2]
[408011607,1773023435652,-3378.16,0.00019726,2]
[408011608,1773023435662,-3378.16,0.00019726,2]
[408011609,1773023435671,-3378.16,0.00019726,2]
[408011610,1773023435682,-3378.16,0.00019726,2]
[408011611,1773023435692,-3378.16,0.00019726,2]
[408011612,1773023435702,-3378.16,0.00019726,2]
[408011613,1773023435712,-5051.7,0.00019726,2]
[408011614,1773023435722,-151.78439564,0.00019726,2]
[408011615,1773023435732,-500.0,0.00019726,2]
[408011616,1773023435742,-604.37219849,0.00019726,2]
[408011617,1773023435753,-150.0,0.00019726,2]
[408011618,1773023435763,-4890.93511657,0.00019738,2]
[408011619,1773023435776,-157.66115538,0.00019748,2]
[408011620,1773023435787,-334.3,0.00019749,2]
[408011621,1773023435796,-295.03576011,0.00019761,2]
[408011622,1773023435807,-174.67,0.00019765,2]
[408011623,1773023435817,-2520.263537,0.00019767,2]
[408011624,1773023435828,-4890.93511657,0.0001977,2]
[408011625,1773023435838,-500.0,0.00019773,2]
[408011626,1773023435847,-500.56489866,0.00019773,2]
[408011627,1773023435857,-500.0,0.00019773,2]
[408011628,1773023435867,-501.66559118,0.00019773,2]
[408011629,1773023435877,-500.0,0.00019773,2]
[408011630,1773023435886,-500.0,0.00019773,2]
[408011631,1773023435896,-500.0,0.00019773,2]
[408011632,1773023435906,-500.0,0.00019773,2]
[408011633,1773023435916,-500.0,0.00019773,2]
[408011634,1773023435926,-500.0,0.00019773,2]
[408011635,1773023435937,-500.0,0.00019773,2]
[408011636,1773023435948,-500.0,0.00019773,2]
[408011637,1773023435958,-500.0,0.00019773,2]
[408011638,1773023435972,-500.0,0.00019773,2]
[408011639,1773023435982,-500.0,0.00019773,2]
[408011640,1773023435992,-500.0,0.00019773,2]
[408011641,1773023436002,-500.0,0.00019773,2]
[408011642,1773023436012,-500.0,0.00019773,2]
[408011643,1773023436022,-500.0,0.00019773,2]
[408011644,1773023436032,-450.72456411,0.00019773,2]
[408011645,1773023436042,-605.0,0.00019779,2]
[408011646,1773023436052,-605.0,0.00019781,2]
[408011647,1773023436066,-394.63500113,0.00019781,2]
[408011648,1773023436076,-152.28254993,0.00019781,2]
[408011649,1773023436087,-157.66115538,0.00019786,2]
[408011650,1773023436098,-174.46,0.0001979,2]
[408011651,1773023436109,-174.46,0.0001979,2]
[408011652,1773023436120,-174.46,0.0001979,2]
[408011653,1773023436131,-1334.14,0.0001979,2]
[408011654,1773023436144,-229028.9758858,0.000198,2]
[408011655,1773023436165,-16942.43863619,0.000198,2]
[408011656,1773023436177,-53250.56033731,0.000198,2]
[408011664,1773023437846,-150.0,0.00019507,2]
[408011666,1773023437858,-150.0,0.00019507,2]
[408011668,1773023437867,-150.0,0.00019507,2]
[408011669,1773023437876,-150.0,0.00019507,2]
[408011671,1773023437885,-150.0,0.00019507,2]
[408011673,1773023437895,-150.0,0.00019507,2]
[408011675,1773023437904,-150.0,0.00019507,2]
[408011676,1773023437913,-150.0,0.00019507,2]
[408011678,1773023437923,-150.0,0.00019562,2]
[408011680,1773023437933,-150.0,0.00019562,2]
[408011682,1773023437942,-150.0,0.00019562,2]
[408011684,1773023437951,-205.74072423,0.00019562,2]
[408011685,1773023437960,-150.0,0.00019562,2]
[408011687,1773023437969,-150.0,0.00019562,2]
[408011689,1773023437979,-150.0,0.00019562,2]
[408011690,1773023437988,-150.0,0.00019617,2]
[408011692,1773023437997,-150.0,0.00019617,2]
[408011694,1773023438008,-150.0,0.00019617,2]
[408011696,1773023438018,-150.0,0.00019617,2]
[408011697,1773023438027,-150.0,0.00019671,2]
[408011699,1773023438037,-150.0,0.00019671,2]
[408011701,1773023438047,-150.0,0.00019671,2]
[408011703,1773023438056,-150.0,0.00019671,2]
[408011704,1773023438067,-150.0,0.00019726,2]
[408011706,1773023438078,-150.0,0.00019726,2]
[408011708,1773023438087,-150.0,0.00019726,2]
[408011710,1773023438098,-150.0,0.00019726,2]
[408011712,1773023438109,-250.0,0.00019781,2]
[408011713,1773023438118,-250.0,0.00019781,2]
[408011715,1773023438127,-250.0,0.00019781,2]
[408011717,1773023438136,-11005.19710405,0.000198,2]
[408011719,1773023438151,-958.39758,0.000198,2]
[408011729,1773023439659,-150.0,0.00019507,2]
[408011730,1773023439668,-500.0,0.00019507,2]
[408011731,1773023439678,-150.0,0.00019562,2]
[408011732,1773023439687,-508.18387873,0.00019562,2]
[408011733,1773023439696,-250.0,0.00019781,2]
[408011734,1773023439705,-13521.17248201,0.000198,2]
[408011735,1773023439974,-715579.06247464,0.000198,2]
[408011736,1773023439984,-1000.0,0.000198,4]
[408011737,1773023439994,-2024.12589431,0.000198,2]
[408011738,1773023440003,-300.0,0.000198,7]
[408011739,1773023440013,-177.17628807,0.00019802,2]
[408011740,1773023440021,-4890.93511657,0.00019803,2]
[408011741,1773023440030,-135663.30791463,0.0001981,2]
[408011742,1773023440040,-177.17628807,0.00019822,2]
[408011743,1773023440049,-157.66115538,0.00019824,2]
[408011744,1773023440059,-334.3,0.00019832,2]
[408011745,1773023440071,-2520.263537,0.00019834,2]
[408011746,1773023440080,-200.0,0.0001984,2]
[408011747,1773023440090,-177.17628807,0.00019841,2]
[408011748,1773023440099,-216.28694899,0.00019845,2]
[408011749,1773023440111,-891.0,0.00019848,2]
[408011750,1773023440121,-151.9746972,0.00019849,2]
[408011751,1773023440130,-177.17628807,0.00019861,2]
[408011752,1773023440139,-157.66115538,0.00019862,2]
[408011753,1773023440151,-177.17628807,0.0001988,2]
[408011754,1773023440160,-25000.0,0.00019891,3]
[408011755,1773023440170,-500.0,0.00019899,2]
[408011756,1773023440179,-500.0,0.00019899,2]
[408011757,1773023440188,-891.0,0.000199,2]
[408011758,1773023440197,-5800.0,0.000199,2]
[408011759,1773023440207,-2000.0,0.000199,2]
[408011760,1773023440216,-5452.1557,0.000199,2]
[408011761,1773023440226,-6215.5358,0.000199,2]
[408011762,1773023440236,-1000.0,0.000199,2]
[408011763,1773023440244,-2000.0,0.000199,2]
[408011764,1773023440253,-157.66115538,0.000199,2]
[408011765,1773023440262,-25000.0,0.000199,3]
[408011766,1773023440271,-2520.263537,0.000199,2]
[408011767,1773023440280,-1020.0,0.000199,7]
[408011768,1773023440290,-5800.0,0.000199,2]
[408011769,1773023440300,-177.17628807,0.000199,2]
[408011770,1773023440310,-2519.66889702,0.000199,2]
[408011771,1773023440320,-3655.0,0.000199,2]
[408011772,1773023440329,-2918.0,0.000199,2]
[408011773,1773023440338,-13397.06450253,0.000199,2]
[408011774,1773023440348,-150.0,0.00019902,2]
[408011775,1773023440358,-152.8085332,0.00019914,2]
[408011776,1773023440367,-334.3,0.00019916,2]
[408011777,1773023440377,-150.01612108,0.0001992,2]
[408011778,1773023440386,-605.0,0.00019925,2]
[408011779,1773023440395,-228.78,0.0001995,2]
[408011780,1773023440404,-781.45,0.00019963,2]
[408011781,1773023440413,-925.8294324,0.00019972,2]
[408011782,1773023440422,-3386.0925662,0.00019972,2]
[408011783,1773023440431,-31031.9793567,0.00019972,2]
[408011784,1773023440440,-150.0,0.00019973,2]
[408011785,1773023440450,-2923.0,0.00019979,3]
[408011786,1773023440459,-250.0,0.0001998,2]
[408011787,1773023440468,-295.03,0.00019986,2]
[408011788,1773023440478,-2923.0,0.00019989,6]
[408011789,1773023440488,-6199.3979489,0.00019993,2]
[408011790,1773023440498,-621.2708768,0.00019993,2]
[408011791,1773023440507,-61526.3622661,0.00019993,2]
[408011792,1773023440517,-10232.1978269,0.00019993,2]
[408011793,1773023440527,-425.31,0.00019994,2]
[408011794,1773023440536,-151.0,0.00019997,2]
[408011795,1773023440547,-151.0,0.00019997,2]
[408011796,1773023440556,-151.0,0.00019997,2]
[408011797,1773023440566,-150.938,0.00019997,2]
[408011798,1773023440576,-310.6853941,0.00019999,2]
[408011799,1773023440587,-300.0,0.00019999,2]
[408011800,1773023440597,-5783.60753717,0.00019999,5]
[408011801,1773023440607,-349.03538361,0.00019999,2]
[408011802,1773023440616,-294.75283121,0.00019999,2]
[408011803,1773023440627,-500.0,0.00019999,2]
[408011804,1773023440637,-500.0,0.00019999,2]
[408011805,1773023440647,-500.0,0.00019999,2]
[408011806,1773023440656,-380.89665525,0.00019999,2]
[408011807,1773023440666,-189.31400926,0.00019999,2]
[408011808,1773023440676,-500.0,0.00019999,2]
[408011809,1773023440686,-500.0,0.00019999,2]
[408011810,1773023440696,-500.0,0.00019999,2]
[408011811,1773023440706,-500.0,0.00019999,2]
[408011812,1773023440715,-500.0,0.00019999,2]
[408011813,1773023440724,-500.0,0.00019999,2]
[408011814,1773023440734,-500.0,0.00019999,2]
[408011815,1773023440743,-500.0,0.00019999,2]
[408011816,1773023440753,-500.0,0.00019999,2]
[408011817,1773023440762,-500.0,0.00019999,2]
[408011818,1773023440771,-500.0,0.00019999,2]